[Event "Romanian Superliga 2024"]
[Site "Mamaia"]
[Date "2024.09.29"]
[Round "2.1"]
[White "Baranciuc, Alexandr"]
[Black "Lashkin, Jegor"]
[Result "0-1"]
[ECO "E04"]
[WhiteElo "2333"]
[BlackElo "2472"]
[Annotator "TA"]
[PlyCount "126"]
[EventDate "2024.09.26"]
[EventType "team-tourn"]
[EventCountry "ROU"]
[SourceTitle "playchess.com"]
[Source "ChessBase"]
[SourceQuality "1"]
[TimeControl "40/5400+30:1800+30"]

{[%evp 38,125,-83,-87,-81,-162,-178,-151,-141,-193,-181,-184,-110,-119,-103,-112,-106,-137,-134,-133,-134,-218,-243,-275,-268,-265,-278,-318,-261,-280,-242,-242,-242,-237,-89,-232,-236,-220,-212,-378,-336,-302,0,0,0,0,0,0,0,0,0,0,0,0,0,0,0,0,0,0,0,0,0,0,0,0,0,0,0,0,0,0,0,0,0,0,0,0,0,0,0,0,0,0,0,0,0,-29979,-29980,-29999]} 1. d4 {[%emt 0:00:10]} Nf6 {[%emt 0:00:13]} 2. c4 {[%emt 0:00:23]} e6 {[%emt 0:00:08]} 3. Nf3 {[%emt 0:00:06]} d5 {[%emt 0:00:05]} 4. g3 {[%emt 0:00:04]} dxc4 {[%emt 0:00:12]} 5. Bg2 {[%emt 0:00:07]} Nc6 {[%emt 0:00:04]} 6. O-O {[%emt 0:04:12]} Rb8 {[%emt 0:00:16]} 7. e3 {[%emt 0:06:00]} b5 {[%emt 0:00:34] 7...Be7 is the fancy move.} 8. b3 {[%emt 0:00:30] E04: Open Catalan: 5 Nf3.} cxb3 {[%emt 0:05:59]} 9. axb3 {[%emt 0:00:08]} Bb7 {[%emt 0:02:21]} 10. Ne5 $146 {[%emt 0:17:45]} ({Predecessor:} 10. Bb2 Be7 11. Qe2 a6 12. Rc1 O-O 13. Ne1 Nb4 14. Bxb7 Rxb7 15. Na3 Qd5 16. Nac2 Qxb3 17. Nxb4 Bxb4 {0-1 Gorovets,A (2463)-Frolyanov,D (2485) Titled Tuesday intern op 18th Jul Early blitz 2023 (11)}) 10... Nxe5 {[%emt 0:02:07]} 11. dxe5 {[%emt 0:00:01]} Nd7 {[%emt 0:00:56]} 12. Bb2 {[%emt 0:01:34]} Bxg2 {[%emt 0:03:20]} 13. Kxg2 {[%emt 0:00:02]} Bc5 {[%emt 0:19:42]} 14. Qc2 {[%emt 0:02:54]} Qc8 {[%emt 0:04:24]} 15. Rd1 {[%emt 0:03:15]} Qb7+ {[%emt 0:01:27]} 16. Kg1 {[%emt 0:01:49]} Be7 {[%emt 0:05:08]} 17. Nd2 {[%emt 0:24:08]} O-O {[%emt 0:01:06]} 18. Ne4 {[%emt 0:00:01]} Rfd8 {[%emt 0:05:23]} 19. Bd4 {[%emt 0:12:14]} c5 {[%emt 0:08:19]} 20. Bxc5 {[%emt 0:01:21]} Qc6 {[%emt 0:08:32]} 21. Ra6 {[%emt 0:10:21]} (21. Rac1 $17 {might work better.} Nxc5 (21... Bxc5 22. Rd6 $11) 22. Rxd8+ Rxd8 23. Nxc5) 21... Qxa6 $19 {[%emt 0:06:31]} 22. Bxe7 {[%emt 0:00:02]} Rdc8 {[%emt 0:01:02]} 23. Qe2 {[%emt 0:00:06]} (23. Qb1 $17 Qc6 (23... Nxe5 24. Bd6 $15) 24. Ng5) 23... Qc6 $1 $19 {[%emt 0:05:57]} (23... Nxe5 24. Bd6 Ng6 25. Bxb8 Rxb8 26. Qd3) 24. Rd4 {[%emt 0:13:30]} Nxe5 {[%emt 0:00:59]} (24... Qb7 $1 $19 25. Qd1 Nxe5) 25. Bd6 $17 {[%emt 0:01:13]} f6 {[%emt 0:05:34]} 26. Bxb8 {[%emt 0:00:32]} Rxb8 {[%emt 0:00:05]} 27. f4 {[%emt 0:00:43]} Nf7 {[%emt 0:01:20]} 28. Qd3 {[%emt 0:00:46]} a5 {[%emt 0:03:40]} 29. Nc3 {[%emt 0:00:23]} (29. Qc3 $17 Qb6 30. Rd7) 29... h5 $19 {[%emt 0:05:32]} 30. Ne2 {[%emt 0:00:39]} a4 {[%emt 0:04:34]} 31. bxa4 bxa4 {[%emt 0:00:00]} 32. Rc4 {[%emt 0:00:05]} Qa6 {[%emt 0:00:00]} 33. Qc2 {[%emt 0:00:10]} a3 {[%emt 0:00:00]} 34. Ra4 {[%emt 0:00:10]} Qd6 {[%emt 0:00:00]} 35. Nd4 {[%emt 0:00:03]} Nh6 {[%emt 0:01:52]} (35... f5 $1 $19 {has better winning chances. And now ...Rb2 would win.} 36. Qc4 Rb1+ 37. Kg2 Rb2+ 38. Kh1 h4 39. gxh4 Qe7 40. Qxe6 Qxe6 (40... Qxh4 41. Ra8+ Kh7 42. Qxf5+ Kh6 43. Ra6+) 41. Nxe6 a2) 36. Qa2 {[%emt 0:00:06] [#]} (36. Nc6 $17 Rf8 37. Nd4) 36... Rb2 $1 $19 {[%emt 0:00:19]} 37. Qxa3 {[%emt 0:00:23]} Rb1+ {[%emt 0:00:28]} 38. Kg2 $2 {[%emt 0:01:47]} (38. Kf2 {was the only chance.} Ng4+ 39. Ke2) 38... Qd5+ $19 {[%emt 0:00:02]} 39. Kh3 {[%emt 0:00:01] [#]} e5 $2 {[%emt 0:00:52]} (39... Ng4 $1 $19 {[%cal Rg4f2] ( -> ...Nf2+)} 40. e4 (40. Ra8+ $2 Kh7 $19) 40... Qxe4) 40. Ra8+ $11 {[%emt 0:00:00]} Kh7 {[%emt 0:00:00]} 41. Qd3+ {[%emt 0:01:09]} e4 {[%emt 0:01:00]} 42. Qxb1 {[%emt 0:00:05]} Qxa8 {[%emt 0:02:37]} 43. Qb5 {[%emt 0:17:29]} Qc8+ {[%emt 0:04:58]} 44. Kg2 {[%emt 0:00:42]} h4 {[%emt 0:09:17]} 45. Qh5 {[%emt 0:00:54]} hxg3 {[%emt 0:01:47]} 46. hxg3 {[%emt 0:00:13]} Qg4 {[%emt 0:02:48]} 47. Qd5 {[%emt 0:02:04]} f5 {[%emt 0:00:21]} 48. Qd8 {[%emt 0:13:08]} Qd1 {[%emt 0:06:12]} 49. Qg5 {[%emt 0:00:02]} Qd2+ {[%emt 0:00:15]} 50. Kh3 {[%emt 0:00:06]} Qc1 {[%emt 0:00:07]} 51. Kg2 {[%emt 0:00:01]} Qc8 {[%emt 0:01:30]} 52. Kg1 {[%emt 0:00:40]} Qd7 {[%emt 0:01:04]} 53. g4 {[%emt 0:01:05]} fxg4 {[%emt 0:02:36]} 54. Qe5 {[%emt 0:00:10]} g6 {[%emt 0:01:05]} 55. Qxe4 {[%emt 0:00:13]} Nf5 {[%emt 0:00:36]} 56. Nxf5 {[%emt 0:00:39]} gxf5 {[%emt 0:00:07]} 57. Qc2 {[%emt 0:00:15]} Kg6 {[%emt 0:00:27]} 58. Qe2 {[%emt 0:00:34]} Qc6 {[%emt 0:00:40]} 59. Kh2 {[%emt 0:00:12]} Qe6 {[%emt 0:02:21]} 60. Kg3 {[%emt 0:00:11]} Qe4 {[%emt 0:00:30]} 61. Kh2 {[%emt 0:00:25]} Kh5 {[%emt 0:00:24]} 62. Kg3 $2 {[%emt 0:00:49][%mdl 8192]} (62. Qb2 $11) 62... Qh1 {[%emt 0:00:38]} 63. Qc4 {[%emt 0:02:38]} Qg1# {[%emt 0:00:09]} 0-1

[Event "Romanian Superliga 2024"]
[Site "Mamaia"]
[Date "2024.09.29"]
[Round "2.2"]
[White "Ogleznev, Alexandr"]
[Black "Sapocinic, Semion"]
[Result "1-0"]
[ECO "B30"]
[WhiteElo "2301"]
[BlackElo "2219"]
[Annotator "RC"]
[PlyCount "105"]
[EventDate "2024.09.26"]
[EventType "team-tourn"]
[EventCountry "ROU"]
[SourceTitle "playchess.com"]
[Source "ChessBase"]
[SourceQuality "1"]
[TimeControl "40/5400+30:1800+30"]

1. e4 {[%emt 0:00:06]} c5 {[%emt 0:00:05]} 2. Nf3 {[%emt 0:00:29]} Nc6 {[%emt 0:00:05]} 3. Bb5 {[%emt 0:00:48]} Nf6 {[%emt 0:00:12]} 4. Nc3 {[%emt 0:02:41]} Qc7 {[%emt 0:00:17]} 5. O-O {[%emt 0:05:30]} Nd4 {[%emt 0:00:40]} 6. Re1 {[%emt 0:04:35]} a6 {[%emt 0:02:39]} 7. Bf1 {[%emt 0:02:08]} Ng4 {[%emt 0:00:51]} 8. e5 {[%emt 0:02:14]} Nxf3+ {[%emt 0:01:58]} 9. Qxf3 {[%emt 0:00:04]} Nxe5 {[%emt 0:00:08]} 10. Qh5 {[%emt 0:01:12]} d6 {[%emt 0:05:17]} 11. f4 {[%emt 0:04:15]} Nd7 {[%emt 0:24:02]} 12. Nd5 {[%emt 0:09:27]} Qc6 {[%emt 0:07:01]} 13. c4 {[%emt 0:06:41]} Nb6 {[%emt 0:06:39]} 14. Nxb6 {[%emt 0:07:41]} Qxb6 {[%emt 0:00:13]} 15. b3 {[%emt 0:00:02]} Bd7 {[%emt 0:09:52]} 16. Bb2 {[%emt 0:01:55]} O-O-O {[%emt 0:02:04]} 17. Qxf7 {[%emt 0:02:36]} Be8 {[%emt 0:00:58]} 18. Qe6+ {[%emt 0:04:15]} Bd7 {[%emt 0:00:06]} 19. Qe3 {[%emt 0:00:49]} e5 {[%emt 0:05:31]} 20. fxe5 {[%emt 0:04:33]} dxe5 {[%emt 0:00:09]} 21. Bxe5 {[%emt 0:00:14]} Bd6 {[%emt 0:00:46]} 22. Bxg7 {[%emt 0:08:57]} Rhg8 {[%emt 0:01:20]} 23. Be5 {[%emt 0:04:15]} Rde8 {[%emt 0:01:44]} 24. Qc3 {[%emt 0:01:38]} Qc7 {[%emt 0:01:09]} 25. Bxd6 {[%emt 0:02:09]} Qxd6 {[%emt 0:00:02]} 26. Rxe8+ {[%emt 0:03:16]} Rxe8 {[%emt 0:00:46]} 27. d3 {[%emt 0:02:43]} Qf4 {[%emt 0:04:29]} 28. Re1 {[%emt 0:01:51]} Rf8 {[%emt 0:01:11]} 29. Qb2 {[%emt 0:00:17]} Bc6 {[%emt 0:00:41]} 30. Qe2 {[%emt 0:00:38]} Qd4+ {[%emt 0:04:24]} 31. Qe3 {[%emt 0:00:17]} Qb2 {[%emt 0:00:40]} 32. Qe6+ {[%emt 0:02:04]} Bd7 {[%emt 0:00:26]} 33. Qe2 {[%emt 0:00:57]} Qa3 {[%emt 0:02:14]} 34. Qd2 {[%emt 0:03:20]} Bc6 {[%emt 0:02:37]} 35. Re2 {[%emt 0:02:42]} Kb8 {[%emt 0:01:54]} 36. Rf2 {[%emt 0:00:07]} Rd8 {[%emt 0:00:41]} 37. Be2 {[%emt 0:00:31]} a5 {[%emt 0:00:55]} 38. Bf3 {[%emt 0:00:24]} Bxf3 {[%emt 0:00:17]} 39. Rxf3 {[%emt 0:00:04]} a4 {[%emt 0:00:08]} 40. bxa4 {[%emt 0:00:00]} Qxa4 {[%emt 0:00:00]} 41. Qf4+ {[%emt 0:23:45]} Ka8 {[%emt 0:02:32]} 42. h3 {[%emt 0:02:10]} Qd7 {[%emt 0:09:17]} 43. Kh2 {[%emt 0:01:33]} Ka7 {[%emt 0:01:58]} 44. Qe5 {[%emt 0:01:58]} Rc8 {[%emt 0:00:52]} 45. Rg3 {[%emt 0:05:51]} Rc7 {[%emt 0:01:09]} 46. Rg8 {[%emt 0:02:04]} Kb6 {[%emt 0:01:55]} 47. Rg3 {[%emt 0:03:31]} Ka7 {[%emt 0:02:55]} 48. a4 {[%emt 0:00:17]} Rc8 {[%emt 0:00:39]} 49. a5 {[%emt 0:00:37]} Qa4 {[%emt 0:00:50]} 50. Rg7 {[%emt 0:01:12]} Qxa5 {[%emt 0:00:58]} 51. Rxh7 {[%emt 0:00:28]} Rd8 {[%emt 0:02:15]} 52. Rc7 {[%emt 0:00:28]} Rxd3 {[%emt 0:02:29]} 53. Rxc5 {[%emt 0:00:57]} 1-0

[Event "Romanian Superliga 2024"]
[Site "Mamaia"]
[Date "2024.09.29"]
[Round "2.3"]
[White "Tamas, Christian-Arrydan"]
[Black "Vavric, Pavel"]
[Result "1-0"]
[ECO "E95"]
[WhiteElo "2137"]
[BlackElo "2285"]
[Annotator "RC"]
[PlyCount "69"]
[EventDate "2024.09.26"]
[EventType "team-tourn"]
[EventCountry "ROU"]
[SourceTitle "playchess.com"]
[Source "ChessBase"]
[SourceQuality "1"]
[TimeControl "40/5400+30:1800+30"]

1. d4 {[%emt 0:00:01]} Nf6 {[%emt 0:00:10]} 2. c4 {[%emt 0:00:04]} g6 {[%emt 0:00:06]} 3. Nc3 {[%emt 0:00:05]} Bg7 {[%emt 0:00:06]} 4. e4 {[%emt 0:00:20]} d6 {[%emt 0:00:07]} 5. Nf3 {[%emt 0:00:05]} O-O {[%emt 0:00:08]} 6. Be2 {[%emt 0:00:02]} Nbd7 {[%emt 0:00:09]} 7. O-O {[%emt 0:00:07]} e5 {[%emt 0:00:05]} 8. Re1 {[%emt 0:00:06]} Re8 {[%emt 0:06:48]} 9. Bf1 {[%emt 0:00:08]} h6 {[%emt 0:07:06]} 10. h3 {[%emt 0:15:54]} exd4 {[%emt 0:11:29]} 11. Nxd4 {[%emt 0:00:05]} Nc5 {[%emt 0:00:08]} 12. f3 {[%emt 0:07:14]} c6 {[%emt 0:04:43]} 13. Be3 {[%emt 0:03:46]} Kh7 {[%emt 0:15:19]} 14. Qd2 {[%emt 0:09:13]} Bd7 {[%emt 0:09:20]} 15. Rad1 {[%emt 0:04:39]} Qc7 {[%emt 0:00:40]} 16. Nc2 {[%emt 0:05:49]} Re6 {[%emt 0:03:49]} 17. b4 {[%emt 0:17:45]} Na6 {[%emt 0:00:19]} 18. b5 {[%emt 0:01:26]} Nc5 {[%emt 0:04:19]} 19. bxc6 {[%emt 0:00:06]} bxc6 {[%emt 0:02:55]} 20. Nd4 {[%emt 0:00:08]} Re7 {[%emt 0:00:43]} 21. Nb3 {[%emt 0:00:13]} Nxb3 {[%emt 0:13:54]} 22. axb3 {[%emt 0:00:07]} Re6 {[%emt 0:04:28]} 23. c5 {[%emt 0:02:42]} dxc5 {[%emt 0:05:19]} 24. Bc4 {[%emt 0:00:13]} Qa5 {[%emt 0:00:05]} 25. Bxe6 {[%emt 0:04:15]} Bxe6 {[%emt 0:00:06]} 26. Na4 {[%emt 0:02:30]} Qxd2 {[%emt 0:02:40]} 27. Rxd2 {[%emt 0:00:11]} c4 {[%emt 0:00:25]} 28. bxc4 {[%emt 0:11:12]} Bxc4 {[%emt 0:00:05]} 29. Rb1 {[%emt 0:00:23]} Bb5 {[%emt 0:01:28]} 30. Nc3 {[%emt 0:02:04]} Bc4 {[%emt 0:00:22]} 31. Rb7 {[%emt 0:01:57]} a5 {[%emt 0:00:24]} 32. Na4 {[%emt 0:00:33]} Kg8 {[%emt 0:02:26]} 33. Nb6 {[%emt 0:01:38]} Ba6 {[%emt 0:00:06]} 34. Nxa8 {[%emt 0:04:31]} Bxb7 {[%emt 0:00:05]} 35. Nc7 {[%emt 0:00:39]} 1-0

[Event "Romanian Superliga 2024"]
[Site "Mamaia"]
[Date "2024.09.29"]
[Round "2.4"]
[White "Sachilaru, Alexandru"]
[Black "Dodoi, Matei-Teodor"]
[Result "1-0"]
[ECO "B68"]
[WhiteElo "2265"]
[BlackElo "2091"]
[Annotator "RC"]
[PlyCount "119"]
[EventDate "2024.09.26"]
[EventType "team-tourn"]
[EventCountry "ROU"]
[SourceTitle "playchess.com"]
[Source "ChessBase"]
[SourceQuality "1"]
[TimeControl "40/5400+30:1800+30"]

1. e4 {[%emt 0:00:04]} c5 {[%emt 0:00:08]} 2. Nf3 {[%emt 0:00:29]} d6 {[%emt 0:00:07]} 3. d4 {[%emt 0:00:15]} cxd4 {[%emt 0:00:08]} 4. Nxd4 {[%emt 0:00:12]} Nf6 {[%emt 0:00:22]} 5. Nc3 {[%emt 0:00:10]} Nc6 {[%emt 0:00:24]} 6. Bg5 {[%emt 0:04:08]} e6 {[%emt 0:00:39]} 7. Qd2 {[%emt 0:00:27]} a6 {[%emt 0:00:44]} 8. O-O-O {[%emt 0:01:19]} Bd7 {[%emt 0:00:15]} 9. f4 {[%emt 0:01:33]} Be7 {[%emt 0:01:57]} 10. Nf3 {[%emt 0:01:12]} b5 {[%emt 0:00:44]} 11. e5 {[%emt 0:02:21]} b4 {[%emt 0:00:36]} 12. exf6 {[%emt 0:00:47]} bxc3 {[%emt 0:03:04]} 13. Qxc3 {[%emt 0:00:51]} gxf6 {[%emt 0:00:12]} 14. Bh4 {[%emt 0:05:09]} d5 {[%emt 0:01:15]} 15. Bd3 {[%emt 0:05:36]} Nb4 {[%emt 0:06:09]} 16. Kb1 {[%emt 0:02:16]} Rc8 {[%emt 0:05:00]} 17. Qd2 {[%emt 0:04:53]} Qb6 {[%emt 0:11:11]} 18. Bf2 {[%emt 0:05:12]} Qb7 {[%emt 0:01:10]} 19. Rhe1 {[%emt 0:19:05]} Rb8 {[%emt 0:25:10]} 20. Bd4 {[%emt 0:03:20]} Nc6 {[%emt 0:02:34]} 21. Bc3 {[%emt 0:02:34]} a5 {[%emt 0:03:21]} 22. Ka1 {[%emt 0:10:35]} a4 {[%emt 0:11:56]} 23. Nd4 {[%emt 0:02:19]} Na5 {[%emt 0:06:34]} 24. Rb1 {[%emt 0:05:47]} Nc6 {[%emt 0:02:32]} 25. a3 {[%emt 0:03:57]} Qb6 {[%emt 0:03:59]} 26. Bb5 {[%emt 0:01:37]} Nxd4 {[%emt 0:01:34]} 27. Bxd7+ {[%emt 0:00:02]} Kxd7 {[%emt 0:00:07]} 28. Bxd4 {[%emt 0:00:03]} Qb5 {[%emt 0:01:12]} 29. Re3 {[%emt 0:03:12]} Rhc8 {[%emt 0:02:26]} 30. Rh3 {[%emt 0:01:16]} Qc4 {[%emt 0:01:38]} 31. Rxh7 {[%emt 0:03:40]} Qxc2 {[%emt 0:01:31]} 32. Qxc2 {[%emt 0:00:12]} Rxc2 {[%emt 0:00:05]} 33. Rxf7 {[%emt 0:00:19]} Rf8 {[%emt 0:02:49]} 34. Rg7 {[%emt 0:00:35]} Ke8 {[%emt 0:01:36]} 35. Re1 {[%emt 0:01:54]} Rc6 {[%emt 0:00:38]} 36. h4 {[%emt 0:01:26]} Rf7 {[%emt 0:00:57]} 37. Rg6 {[%emt 0:01:26]} Rc4 {[%emt 0:00:58]} 38. Bc3 {[%emt 0:01:42]} Kd7 {[%emt 0:00:46]} 39. g3 {[%emt 0:08:05]} d4 {[%emt 0:01:07]} 40. Bd2 {[%emt 0:00:00]} Rc2 {[%emt 0:00:00]} 41. Ba5 {[%emt 0:00:00]} e5 {[%emt 0:15:00]} 42. h5 {[%emt 0:00:29]} Rh2 {[%emt 0:05:12]} 43. h6 {[%emt 0:01:25]} Bf8 {[%emt 0:02:57]} 44. Rc1 {[%emt 0:04:33]} Bxh6 {[%emt 0:02:18]} 45. Rc7+ {[%emt 0:01:14]} Ke6 {[%emt 0:09:17]} 46. Rxh6 {[%emt 0:02:00]} Rxc7 {[%emt 0:00:38]} 47. Rxh2 {[%emt 0:00:03]} Rc1+ {[%emt 0:00:04]} 48. Ka2 {[%emt 0:00:04]} e4 {[%emt 0:00:03]} 49. Rd2 {[%emt 0:02:52]} Kd5 {[%emt 0:01:11]} 50. Bb6 {[%emt 0:00:25]} d3 {[%emt 0:00:38]} 51. g4 {[%emt 0:00:35]} Kc4 {[%emt 0:00:30]} 52. g5 {[%emt 0:00:24]} fxg5 {[%emt 0:00:28]} 53. fxg5 {[%emt 0:00:07]} Rf1 {[%emt 0:00:32]} 54. Rg2 {[%emt 0:00:29]} Rf7 {[%emt 0:00:35]} 55. g6 {[%emt 0:00:13]} Rg7 {[%emt 0:00:09]} 56. Be3 {[%emt 0:00:39]} Kd5 {[%emt 0:00:09]} 57. Bh6 {[%emt 0:00:21]} Rg8 {[%emt 0:00:05]} 58. g7 {[%emt 0:00:09]} Kd4 {[%emt 0:00:04]} 59. Rf2 {[%emt 0:01:12]} e3 {[%emt 0:01:19]} 60. Rf8 {[%emt 0:00:22]} 1-0

[Event "Romanian Superliga 2024"]
[Site "Mamaia"]
[Date "2024.09.29"]
[Round "2.5"]
[White "Sabarez, Iulian"]
[Black "Patrascu, Catalin-Lucian"]
[Result "0-1"]
[ECO "B50"]
[WhiteElo "2051"]
[BlackElo "2298"]
[Annotator "RC"]
[PlyCount "98"]
[EventDate "2024.09.26"]
[EventType "team-tourn"]
[EventCountry "ROU"]
[SourceTitle "playchess.com"]
[Source "ChessBase"]
[SourceQuality "1"]
[TimeControl "40/5400+30:1800+30"]

1. e4 {[%emt 0:00:05]} c5 {[%emt 0:00:05]} 2. Nf3 {[%emt 0:00:02]} d6 {[%emt 0:00:04]} 3. c3 {[%emt 0:01:39]} Nf6 {[%emt 0:00:15]} 4. Be2 {[%emt 0:00:55]} Bd7 {[%emt 0:00:40]} 5. e5 {[%emt 0:04:28]} dxe5 {[%emt 0:00:43]} 6. Nxe5 {[%emt 0:00:08]} Nc6 {[%emt 0:00:05]} 7. Nxd7 {[%emt 0:01:37]} Qxd7 {[%emt 0:00:04]} 8. d3 {[%emt 0:10:27]} e6 {[%emt 0:01:45]} 9. Nd2 {[%emt 0:01:49]} Be7 {[%emt 0:03:25]} 10. Nf3 {[%emt 0:05:37]} O-O {[%emt 0:01:59]} 11. Be3 {[%emt 0:09:17]} Rad8 {[%emt 0:04:19]} 12. Qc2 {[%emt 0:03:44]} Nd5 {[%emt 0:02:08]} 13. O-O {[%emt 0:11:14]} Qc7 {[%emt 0:06:10]} 14. Rad1 {[%emt 0:05:31]} b6 {[%emt 0:11:56]} 15. d4 {[%emt 0:04:02]} cxd4 {[%emt 0:02:04]} 16. cxd4 {[%emt 0:00:37]} Qd6 {[%emt 0:20:49]} 17. a3 {[%emt 0:06:20]} Rc8 {[%emt 0:07:31]} 18. Qb1 {[%emt 0:01:17]} f5 {[%emt 0:04:21]} 19. Bc4 {[%emt 0:07:37]} Bf6 {[%emt 0:07:56]} 20. Rfe1 {[%emt 0:02:38]} h6 {[%emt 0:07:32]} 21. h4 {[%emt 0:09:56]} Rc7 {[%emt 0:06:54]} 22. Qa2 {[%emt 0:09:29]} Nce7 {[%emt 0:06:40]} 23. Bd2 {[%emt 0:01:02]} Kh7 {[%emt 0:01:23]} 24. Re2 {[%emt 0:01:45]} Ng6 {[%emt 0:02:54]} 25. g3 {[%emt 0:00:02]} Qc6 {[%emt 0:00:17]} 26. Ne5 {[%emt 0:01:36]} Bxe5 {[%emt 0:00:59]} 27. Bxd5 {[%emt 0:00:30]} exd5 {[%emt 0:00:31]} 28. dxe5 {[%emt 0:00:09]} Re8 {[%emt 0:00:29]} 29. Bc3 {[%emt 0:00:45]} Rd7 {[%emt 0:00:25]} 30. Qb1 {[%emt 0:00:37]} Qe6 {[%emt 0:00:27]} 31. g4 {[%emt 0:00:31]} Rf8 {[%emt 0:00:27]} 32. Bb4 {[%emt 0:00:32]} Rff7 {[%emt 0:00:13]} 33. h5 {[%emt 0:00:16]} Nf4 {[%emt 0:00:15]} 34. Re3 {[%emt 0:00:36]} Kg8 {[%emt 0:00:37]} 35. Rc1 {[%emt 0:00:36]} Rd8 {[%emt 0:00:33]} 36. Qc2 {[%emt 0:00:33]} d4 {[%emt 0:00:52]} 37. Ree1 {[%emt 0:00:30]} fxg4 {[%emt 0:00:31]} 38. Rf1 {[%emt 0:00:24]} Nh3+ {[%emt 0:00:15]} 39. Kg2 {[%emt 0:00:32]} Qd5+ {[%emt 0:00:14]} 40. f3 {[%emt 0:00:00]} Rxf3 {[%emt 0:00:00]} 41. Qc4 {[%emt 0:12:30]} Rf2+ {[%emt 0:02:49]} 42. Kg3 {[%emt 0:00:05]} Qxc4 {[%emt 0:00:34]} 43. Rxc4 {[%emt 0:00:15]} Rxf1 {[%emt 0:00:05]} 44. e6 {[%emt 0:00:10]} Nf4 {[%emt 0:03:12]} 45. e7 {[%emt 0:00:07]} Re8 {[%emt 0:00:08]} 46. Kxg4 {[%emt 0:01:06]} Nd5 {[%emt 0:00:14]} 47. Rxd4 {[%emt 0:00:09]} Nxb4 {[%emt 0:00:07]} 48. axb4 {[%emt 0:00:02]} Rxe7 {[%emt 0:00:06]} 49. b5 {[%emt 0:00:07]} Re5 {[%emt 0:00:06]} 0-1

[Event "Romanian Superliga 2024"]
[Site "Mamaia"]
[Date "2024.09.29"]
[Round "2.6"]
[White "Popescu, Daniel-Vasilica"]
[Black "Costache, Andrei Eugeniu"]
[Result "1/2-1/2"]
[ECO "D38"]
[WhiteElo "1953"]
[BlackElo "1977"]
[Annotator "RC"]
[PlyCount "144"]
[EventDate "2024.09.26"]
[EventType "team-tourn"]
[EventCountry "ROU"]
[SourceTitle "playchess.com"]
[Source "ChessBase"]
[SourceQuality "1"]
[TimeControl "40/5400+30:1800+30"]

1. d4 {[%emt 0:00:04]} Nf6 {[%emt 0:00:19]} 2. c4 {[%emt 0:00:06]} e6 {[%emt 0:00:12]} 3. Nf3 {[%emt 0:00:19]} d5 {[%emt 0:00:28]} 4. Nc3 {[%emt 0:00:48]} Bb4 {[%emt 0:00:58]} 5. Bg5 {[%emt 0:01:32]} h6 {[%emt 0:01:43]} 6. Bxf6 {[%emt 0:02:40]} Qxf6 {[%emt 1:29:50]} 7. e3 {[%emt 1:28:31]} c5 {[%emt 0:00:30]} 8. cxd5 {[%emt 0:00:30]} exd5 {[%emt 0:00:00]} 9. Bb5+ {[%emt 0:00:00]} Nc6 {[%emt 0:00:00]} 10. O-O {[%emt 0:00:00]} Bxc3 {[%emt 0:00:00]} 11. bxc3 {[%emt 0:00:00]} cxd4 {[%emt 0:00:00]} 12. cxd4 {[%emt 0:00:00]} Bg4 {[%emt 0:00:00]} 13. Rc1 {[%emt 0:00:00]} Rc8 {[%emt 0:00:00]} 14. Rc5 {[%emt 0:00:00]} O-O {[%emt 0:00:00]} 15. Be2 {[%emt 0:00:00]} b6 {[%emt 0:00:00]} 16. Rc1 {[%emt 0:00:00]} Qd6 {[%emt 0:00:00]} 17. h3 {[%emt 0:00:00]} Bh5 {[%emt 0:00:00]} 18. Qa4 {[%emt 0:00:00]} Na5 {[%emt 0:00:00]} 19. g4 {[%emt 0:00:00]} Bg6 {[%emt 0:00:00]} 20. Ne5 {[%emt 0:00:00]} Be4 {[%emt 0:00:00]} 21. Qd7 {[%emt 0:00:00]} Qxd7 {[%emt 0:00:00]} 22. Nxd7 {[%emt 0:00:00]} Rfd8 {[%emt 0:00:00]} 23. Ne5 {[%emt 0:00:00]} f6 {[%emt 0:00:00]} 24. Nd3 {[%emt 0:00:00]} Nc4 {[%emt 0:00:00]} 25. Nf4 {[%emt 0:00:00]} g5 {[%emt 0:02:11]} 26. Nh5 {[%emt 0:00:00]} Kf7 {[%emt 0:00:27]} 27. Ng3 {[%emt 0:00:00]} Bg6 {[%emt 0:00:13]} 28. Rc3 {[%emt 0:00:00]} b5 {[%emt 0:00:38]} 29. Bd3 {[%emt 0:00:00]} b4 {[%emt 0:01:40]} 30. Bxg6+ {[%emt 0:00:00]} Kxg6 {[%emt 0:00:05]} 31. Rd3 {[%emt 0:00:00]} Nd6 {[%emt 0:03:06]} 32. Rb1 {[%emt 0:01:43]} a5 {[%emt 0:01:01]} 33. a3 {[%emt 0:00:45]} Rc4 {[%emt 0:00:10]} 34. axb4 {[%emt 0:00:18]} axb4 {[%emt 0:01:26]} 35. Rdb3 {[%emt 0:00:43]} Rb8 {[%emt 0:00:28]} 36. Kg2 {[%emt 0:00:33]} Ne4 {[%emt 0:01:24]} 37. Nxe4 {[%emt 0:00:58]} dxe4 {[%emt 0:00:01]} 38. Ra1 {[%emt 0:00:46]} Rb6 {[%emt 0:01:00]} 39. Ra5 {[%emt 0:00:51]} Kf7 {[%emt 0:00:49]} 40. Kg3 {[%emt 0:00:00]} Ke6 {[%emt 0:00:00]} 41. f3 {[%emt 0:06:17]} exf3 {[%emt 0:03:30]} 42. Kxf3 {[%emt 0:00:06]} Kd6 {[%emt 0:03:47]} 43. Ke4 {[%emt 0:06:14]} Rc7 {[%emt 0:08:12]} 44. Ra4 {[%emt 0:02:42]} Rcb7 {[%emt 0:00:32]} 45. Ra1 {[%emt 0:03:01]} Rc6 {[%emt 0:02:15]} 46. Rab1 {[%emt 0:00:08]} Rcb6 {[%emt 0:00:09]} 47. Rc1 {[%emt 0:01:02]} Rb5 {[%emt 0:01:34]} 48. Rc8 {[%emt 0:01:15]} h5 {[%emt 0:04:00]} 49. Kd3 {[%emt 0:01:59]} hxg4 {[%emt 0:00:49]} 50. hxg4 {[%emt 0:01:55]} f5 {[%emt 0:02:43]} 51. gxf5 {[%emt 0:00:32]} Rxf5 {[%emt 0:00:06]} 52. Rc4 {[%emt 0:02:03]} Rfb5 {[%emt 0:01:06]} 53. Rc1 {[%emt 0:01:09]} Ra5 {[%emt 0:03:23]} 54. Rcb1 {[%emt 0:00:16]} Rab5 {[%emt 0:01:48]} 55. Kc4 {[%emt 0:02:05]} R5b6 {[%emt 0:00:11]} 56. Rg1 {[%emt 0:01:11]} Rc7+ {[%emt 0:00:13]} 57. Kd3 {[%emt 0:00:06]} Rg7 {[%emt 0:00:41]} 58. Rgb1 {[%emt 0:02:28]} Rgb7 {[%emt 0:00:06]} 59. Rh1 {[%emt 0:00:17]} Ke7 {[%emt 0:03:42]} 60. e4 {[%emt 0:02:53]} Rf6 {[%emt 0:01:29]} 61. Rh7+ {[%emt 0:00:37]} Rf7 {[%emt 0:00:06]} 62. Rxf7+ {[%emt 0:00:41]} Kxf7 {[%emt 0:00:05]} 63. e5 {[%emt 0:00:04]} g4 {[%emt 0:00:43]} 64. Ke4 {[%emt 0:00:07]} Rb5 {[%emt 0:02:02]} 65. d5 {[%emt 0:04:13]} Ke7 {[%emt 0:00:05]} 66. Kd4 {[%emt 0:00:20]} Rb8 {[%emt 0:00:56]} 67. Kc4 {[%emt 0:02:50]} Rb6 {[%emt 0:00:06]} 68. Kc5 {[%emt 0:01:04]} Rb8 {[%emt 0:00:18]} 69. Kc4 {[%emt 0:00:36]} Rb6 {[%emt 0:00:11]} 70. Kd4 {[%emt 0:00:05]} Rb8 {[%emt 0:00:15]} 71. Ke4 {[%emt 0:02:38]} Rb5 {[%emt 0:00:08]} 72. Kd4 {[%emt 0:02:37]} Rb8 {[%emt 0:00:16]} 1/2-1/2